[Event "Early-Titled-Tuesday-Blitz-February-20-2024"]
[Site "Chess.com"]
[Date "2024.02.20"]
[Round "10"]
[White "Inepton_Fermion"]
[Black "zurzan"]
[Result "1-0"]
[WhiteElo "2393"]
[BlackElo "2069"]
[TimeControl "180+1"]
[EndTime "9:54:20 PST"]
[Termination "Inepton_Fermion won by resignation"]

1. Nf3 {[%clk 0:03:00.9]} 1... g6 {[%clk 0:02:52.2]} 2. g3 {[%clk 0:02:45.8]}
2... Bg7 {[%clk 0:02:53.1]} 3. Bg2 {[%clk 0:02:46.3]} 3... Nf6 {[%clk
0:02:53.4]} 4. O-O {[%clk 0:02:46.1]} 4... O-O {[%clk 0:02:54.3]} 5. b3 {[%clk
0:02:45.4]} 5... c5 {[%clk 0:02:54.7]} 6. Bb2 {[%clk 0:02:38.2]} 6... Nc6 {[%clk
0:02:55.6]} 7. c4 {[%clk 0:02:38.5]} 7... d6 {[%clk 0:02:51.1]} 8. d4 {[%clk
0:02:37.6]} 8... cxd4 {[%clk 0:02:50.4]} 9. Nxd4 {[%clk 0:02:38.3]} 9... Rb8
{[%clk 0:02:48]} 10. Bxc6 {[%clk 0:02:31.3]} 10... bxc6 {[%clk 0:02:48.9]} 11.
Nxc6 {[%clk 0:02:31.3]} 11... Qb6 {[%clk 0:02:46]} 12. Nxb8 {[%clk 0:02:30.6]}
12... Qxb8 {[%clk 0:02:46.9]} 13. Nc3 {[%clk 0:02:27.8]} 13... Bh3 {[%clk
0:02:46.1]} 14. Re1 {[%clk 0:02:25.7]} 14... Qb7 {[%clk 0:02:46.1]} 15. f3
{[%clk 0:02:14]} 15... Qb6+ {[%clk 0:02:39.5]} 16. e3 {[%clk 0:02:14.1]} 16...
Nd7 {[%clk 0:02:33.7]} 17. Nd5 {[%clk 0:02:13.2]} 17... Qd8 {[%clk 0:02:32]} 18.
Bxg7 {[%clk 0:02:12.8]} 18... Kxg7 {[%clk 0:02:31.9]} 19. Qd4+ {[%clk
0:02:12.5]} 19... f6 {[%clk 0:02:30.2]} 20. g4 {[%clk 0:01:47]} 20... Ne5 {[%clk
0:02:28.7]} 21. Qd1 {[%clk 0:01:28.1]} 21... h5 {[%clk 0:02:21.7]} 22. Nf4
{[%clk 0:01:28.4]} 22... hxg4 {[%clk 0:02:19.7]} 23. Ne6+ {[%clk 0:01:28.3]} 1-0

[Event "Early-Titled-Tuesday-Blitz-February-20-2024"]
[Site "Chess.com"]
[Date "2024.02.20"]
[Round "10"]
[White "alpope"]
[Black "HamedWafa4"]
[Result "0-1"]
[WhiteElo "2528"]
[BlackElo "2722"]
[TimeControl "180+1"]
[EndTime "9:54:31 PST"]
[Termination "HamedWafa4 won by resignation"]

1. Nf3 {[%clk 0:03:00.9]} 1... c5 {[%clk 0:02:59.5]} 2. g3 {[%clk 0:02:58.5]}
2... Nc6 {[%clk 0:02:59.4]} 3. Bg2 {[%clk 0:02:58.7]} 3... g6 {[%clk 0:02:59.7]}
4. O-O {[%clk 0:02:56.8]} 4... Bg7 {[%clk 0:02:59.6]} 5. c4 {[%clk 0:02:57]}
5... d6 {[%clk 0:02:50.2]} 6. Nc3 {[%clk 0:02:56.5]} 6... Nf6 {[%clk 0:02:50.1]}
7. b3 {[%clk 0:02:55.9]} 7... O-O {[%clk 0:02:49.3]} 8. Bb2 {[%clk 0:02:56.2]}
8... Rb8 {[%clk 0:02:44.8]} 9. d4 {[%clk 0:02:54.2]} 9... cxd4 {[%clk
0:02:44.6]} 10. Nxd4 {[%clk 0:02:54.6]} 10... Bd7 {[%clk 0:02:45.5]} 11. e4
{[%clk 0:02:44.6]} 11... a6 {[%clk 0:02:40.5]} 12. Re1 {[%clk 0:02:38.4]} 12...
Qa5 {[%clk 0:02:34.7]} 13. Nd5 {[%clk 0:02:23.2]} 13... Nxd5 {[%clk 0:02:23.7]}
14. exd5 {[%clk 0:02:24.1]} 14... Nxd4 {[%clk 0:02:22.4]} 15. Bxd4 {[%clk
0:02:23.8]} 15... Bxd4 {[%clk 0:02:22.6]} 16. Qxd4 {[%clk 0:02:24.7]} 16... Rfe8
{[%clk 0:02:23.4]} 17. Re2 {[%clk 0:02:20.6]} 17... b5 {[%clk 0:02:21.6]} 18. c5
{[%clk 0:02:12.1]} 18... dxc5 {[%clk 0:02:17.3]} 19. Qxc5 {[%clk 0:02:12.8]}
19... Rbc8 {[%clk 0:02:17.7]} 20. Qd4 {[%clk 0:02:10.6]} 20... Bf5 {[%clk
0:02:03.6]} 21. Rae1 {[%clk 0:02:09.1]} 21... h5 {[%clk 0:01:58.2]} 22. d6
{[%clk 0:02:00.8]} 22... e5 {[%clk 0:01:54.1]} 23. Rxe5 {[%clk 0:01:57.6]} 23...
Qxe1+ {[%clk 0:01:54]} 0-1

[Event "Early-Titled-Tuesday-Blitz-February-20-2024"]
[Site "Chess.com"]
[Date "2024.02.20"]
[Round "10"]
[White "IM_ArthurDW08"]
[Black "Bigfish1995"]
[Result "0-1"]
[WhiteElo "2825"]
[BlackElo "3183"]
[TimeControl "180+1"]
[EndTime "9:54:59 PST"]
[Termination "Bigfish1995 won by resignation"]

1. e4 {[%clk 0:03:00.9]} 1... c6 {[%clk 0:02:59.3]} 2. d4 {[%clk 0:02:56]} 2...
d5 {[%clk 0:02:59.4]} 3. e5 {[%clk 0:02:54.9]} 3... Bf5 {[%clk 0:02:59.2]} 4. h4
{[%clk 0:02:41.9]} 4... a6 {[%clk 0:02:56.6]} 5. g4 {[%clk 0:02:33.8]} 5... Bd7
{[%clk 0:02:56.3]} 6. Nc3 {[%clk 0:02:32.1]} 6... e6 {[%clk 0:02:48.5]} 7. Be3
{[%clk 0:02:27.3]} 7... c5 {[%clk 0:02:47.2]} 8. dxc5 {[%clk 0:02:26.5]} 8...
Nc6 {[%clk 0:02:38.4]} 9. f4 {[%clk 0:02:24]} 9... d4 {[%clk 0:02:18.6]} 10.
Bxd4 {[%clk 0:02:20.4]} 10... Nxd4 {[%clk 0:02:19.5]} 11. Qxd4 {[%clk
0:02:20.7]} 11... Bc6 {[%clk 0:02:20.4]} 12. Qxd8+ {[%clk 0:02:17.1]} 12... Rxd8
{[%clk 0:02:21.3]} 13. Rh3 {[%clk 0:02:04.9]} 13... Bxc5 {[%clk 0:02:21]} 14.
Nge2 {[%clk 0:02:00.8]} 14... Nh6 {[%clk 0:02:03.6]} 15. g5 {[%clk 0:01:51.4]}
15... Ng4 {[%clk 0:01:52]} 16. Nd1 {[%clk 0:01:43]} 16... h6 {[%clk 0:01:50.3]}
17. Rg3 {[%clk 0:01:41]} 17... Nh2 {[%clk 0:01:49.4]} 18. Bg2 {[%clk 0:01:33.4]}
18... Bxg2 {[%clk 0:01:49]} 19. Rxg2 {[%clk 0:01:34.3]} 19... Nf3+ {[%clk
0:01:49.1]} 20. Kf1 {[%clk 0:01:34]} 20... hxg5 {[%clk 0:01:49.5]} 21. Rg3
{[%clk 0:01:24.8]} 21... g4 {[%clk 0:01:41.1]} 0-1

[Event "Early-Titled-Tuesday-Blitz-February-20-2024"]
[Site "Chess.com"]
[Date "2024.02.20"]
[Round "10"]
[White "dzhumagaliev"]
[Black "HelvertHernandez"]
[Result "1-0"]
[WhiteElo "2760"]
[BlackElo "1988"]
[TimeControl "180+1"]
[EndTime "9:55:02 PST"]
[Termination "dzhumagaliev won by resignation"]

1. Nf3 {[%clk 0:03:00.9]} 1... c5 {[%clk 0:02:58.4]} 2. h4 {[%clk 0:03:01.8]}
2... Nc6 {[%clk 0:02:57.6]} 3. h5 {[%clk 0:03:02.6]} 3... h6 {[%clk 0:02:57.2]}
4. c3 {[%clk 0:03:02.3]} 4... d5 {[%clk 0:02:56.2]} 5. d4 {[%clk 0:03:02.9]}
5... Bg4 {[%clk 0:02:46.8]} 6. Rh4 {[%clk 0:03:00.5]} 6... Bxf3 {[%clk
0:02:42.4]} 7. gxf3 {[%clk 0:02:57.8]} 7... e5 {[%clk 0:02:41.8]} 8. Rh1 {[%clk
0:02:50.6]} 8... cxd4 {[%clk 0:02:40.4]} 9. cxd4 {[%clk 0:02:50.3]} 9... Nxd4
{[%clk 0:02:40]} 10. f4 {[%clk 0:02:49.9]} 10... Bb4+ {[%clk 0:02:35.9]} 11. Nc3
{[%clk 0:02:50.1]} 11... Qa5 {[%clk 0:02:33.7]} 12. Bd2 {[%clk 0:02:46.2]} 12...
exf4 {[%clk 0:02:22.3]} 13. a3 {[%clk 0:02:45.8]} 13... Bxc3 {[%clk 0:02:13.6]}
14. Bxc3 {[%clk 0:02:44.7]} 14... Qc7 {[%clk 0:01:52.9]} 15. Qxd4 {[%clk
0:02:41.7]} 15... f6 {[%clk 0:01:48.5]} 16. Qxd5 {[%clk 0:02:26.8]} 16... Ne7
{[%clk 0:01:46.7]} 17. Qb5+ {[%clk 0:02:25.8]} 17... Kf8 {[%clk 0:01:27.9]} 18.
Bg2 {[%clk 0:02:19.2]} 18... Rb8 {[%clk 0:01:23.8]} 19. O-O-O {[%clk 0:02:08.1]}
19... a6 {[%clk 0:01:20.4]} 20. Qd7 {[%clk 0:02:03.2]} 20... Rc8 {[%clk
0:01:07.9]} 21. Qxc7 {[%clk 0:02:01.6]} 21... Rxc7 {[%clk 0:01:07.3]} 22. Rd8+
{[%clk 0:02:02.1]} 22... Kf7 {[%clk 0:01:06.3]} 23. Rxh8 {[%clk 0:02:03]} 23...
Nd5 {[%clk 0:01:04.8]} 24. Bxd5+ {[%clk 0:02:02.9]} 1-0

[Event "Early-Titled-Tuesday-Blitz-February-20-2024"]
[Site "Chess.com"]
[Date "2024.02.20"]
[Round "10"]
[White "mbchess97"]
[Black "azikom"]
[Result "1-0"]
[WhiteElo "2487"]
[BlackElo "2643"]
[TimeControl "180+1"]
[EndTime "9:55:04 PST"]
[Termination "mbchess97 won by resignation"]

1. c4 {[%clk 0:03:00.9]} 1... c5 {[%clk 0:03:00.9]} 2. g3 {[%clk 0:02:59.8]}
2... Nc6 {[%clk 0:03:01]} 3. Bg2 {[%clk 0:03:00.1]} 3... h5 {[%clk 0:03:01.4]}
4. Nf3 {[%clk 0:02:56]} 4... g6 {[%clk 0:02:59.2]} 5. d4 {[%clk 0:02:51.6]} 5...
cxd4 {[%clk 0:02:58.7]} 6. Nxd4 {[%clk 0:02:51.7]} 6... Bg7 {[%clk 0:02:59.3]}
7. Be3 {[%clk 0:02:47.3]} 7... h4 {[%clk 0:02:58.3]} 8. Nc3 {[%clk 0:02:45.3]}
8... Nf6 {[%clk 0:02:55.7]} 9. Qd2 {[%clk 0:02:33.2]} 9... Ng4 {[%clk
0:02:52.6]} 10. Nxc6 {[%clk 0:02:29.2]} 10... bxc6 {[%clk 0:02:51.8]} 11. Bd4
{[%clk 0:02:15.1]} 11... Ne5 {[%clk 0:02:50.8]} 12. b3 {[%clk 0:02:11.9]} 12...
Kf8 {[%clk 0:02:15.9]} 13. Rd1 {[%clk 0:02:06.9]} 13... Qa5 {[%clk 0:02:13.3]}
14. f4 {[%clk 0:01:41.1]} 14... Ng4 {[%clk 0:02:11.8]} 15. Bxg7+ {[%clk
0:01:22.5]} 15... Kxg7 {[%clk 0:02:12.7]} 16. Bf3 {[%clk 0:01:19.3]} 16... d6
{[%clk 0:01:58.9]} 17. Ne4 {[%clk 0:01:07.7]} 17... hxg3 {[%clk 0:01:52.2]} 18.
Qxa5 {[%clk 0:00:58.8]} 1-0

[Event "Early-Titled-Tuesday-Blitz-February-20-2024"]
[Site "Chess.com"]
[Date "2024.02.20"]
[Round "10"]
[White "CaspiIsrael"]
[Black "Casper"]
[Result "0-1"]
[WhiteElo "2720"]
[BlackElo "2562"]
[TimeControl "180+1"]
[EndTime "9:55:09 PST"]
[Termination "Casper won by resignation"]

1. d4 {[%clk 0:03:00.9]} 1... d5 {[%clk 0:02:58.6]} 2. c4 {[%clk 0:02:57.8]}
2... dxc4 {[%clk 0:02:59.5]} 3. e3 {[%clk 0:02:56]} 3... Nf6 {[%clk 0:02:59.2]}
4. Bxc4 {[%clk 0:02:55.1]} 4... a6 {[%clk 0:02:59.4]} 5. Nf3 {[%clk 0:02:54.8]}
5... Nc6 {[%clk 0:02:57.4]} 6. O-O {[%clk 0:02:51.5]} 6... Bg4 {[%clk
0:02:57.1]} 7. h3 {[%clk 0:02:51.1]} 7... Bh5 {[%clk 0:02:56.6]} 8. Nc3 {[%clk
0:02:48.8]} 8... e6 {[%clk 0:02:55.4]} 9. Be2 {[%clk 0:02:43.2]} 9... Bd6 {[%clk
0:02:54]} 10. Qb3 {[%clk 0:02:37.9]} 10... O-O {[%clk 0:02:51.6]} 11. Rd1 {[%clk
0:02:35]} 11... b5 {[%clk 0:02:47.9]} 12. a4 {[%clk 0:02:34.6]} 12... b4 {[%clk
0:02:46.6]} 13. Nb1 {[%clk 0:02:34.7]} 13... e5 {[%clk 0:02:39.3]} 14. dxe5
{[%clk 0:02:29.3]} 14... Nxe5 {[%clk 0:02:39.4]} 15. Nbd2 {[%clk 0:02:29.7]}
15... Qe7 {[%clk 0:02:37.7]} 16. a5 {[%clk 0:02:24.2]} 16... Nfd7 {[%clk
0:02:31.1]} 17. Re1 {[%clk 0:02:16.8]} 17... Nc5 {[%clk 0:02:29.8]} 18. Qd5
{[%clk 0:02:11.2]} 18... Rad8 {[%clk 0:02:26.2]} 19. Qa2 {[%clk 0:02:06.3]}
19... b3 {[%clk 0:02:18.9]} 20. Nxb3 {[%clk 0:01:57.5]} 20... Nxf3+ {[%clk
0:02:17.7]} 21. Bxf3 {[%clk 0:01:57.5]} 21... Bxf3 {[%clk 0:02:17.4]} 22. gxf3
{[%clk 0:01:58.4]} 22... Qg5+ {[%clk 0:02:16.2]} 23. Kf1 {[%clk 0:01:57.7]}
23... Nd3 {[%clk 0:01:59.4]} 24. Rd1 {[%clk 0:01:52.8]} 24... Bh2 {[%clk
0:01:59]} 25. Ke2 {[%clk 0:01:46.9]} 25... Qb5 {[%clk 0:01:54]} 26. Nd4 {[%clk
0:01:24.5]} 26... Nxc1+ {[%clk 0:01:50.7]} 27. Kd2 {[%clk 0:01:17.2]} 27... Nxa2
{[%clk 0:01:47.4]} 28. Rxa2 {[%clk 0:01:16.5]} 28... c5 {[%clk 0:01:47.1]} 0-1

[Event "Early-Titled-Tuesday-Blitz-February-20-2024"]
[Site "Chess.com"]
[Date "2024.02.20"]
[Round "10"]
[White "SharapovEvgeny"]
[Black "ikhasu"]
[Result "0-1"]
[WhiteElo "2537"]
[BlackElo "2464"]
[TimeControl "180+1"]
[EndTime "9:55:16 PST"]
[Termination "ikhasu won by checkmate"]

1. e4 {[%clk 0:03:00.1]} 1... c5 {[%clk 0:02:57.3]} 2. Nf3 {[%clk 0:02:59.8]}
2... e6 {[%clk 0:02:57.3]} 3. d4 {[%clk 0:02:59.6]} 3... cxd4 {[%clk 0:02:58.2]}
4. Nxd4 {[%clk 0:03:00]} 4... Nc6 {[%clk 0:02:58.7]} 5. Nb5 {[%clk 0:02:57.7]}
5... d6 {[%clk 0:02:56.3]} 6. Bf4 {[%clk 0:02:57.5]} 6... e5 {[%clk 0:02:56]} 7.
Be3 {[%clk 0:02:57.9]} 7... a6 {[%clk 0:02:55.7]} 8. N5c3 {[%clk 0:02:57.5]}
8... Nf6 {[%clk 0:02:55.4]} 9. Bg5 {[%clk 0:02:57.5]} 9... Be6 {[%clk
0:02:53.4]} 10. Nd2 {[%clk 0:02:57.5]} 10... h6 {[%clk 0:02:45.6]} 11. Bxf6
{[%clk 0:02:57.3]} 11... gxf6 {[%clk 0:02:41.8]} 12. Nc4 {[%clk 0:02:56.9]}
12... f5 {[%clk 0:02:40.9]} 13. exf5 {[%clk 0:02:56.5]} 13... Bxf5 {[%clk
0:02:40.4]} 14. Ne3 {[%clk 0:02:57.1]} 14... Bg6 {[%clk 0:02:37.4]} 15. Bd3
{[%clk 0:02:56.5]} 15... Qg5 {[%clk 0:02:35.7]} 16. Bxg6 {[%clk 0:02:54.2]}
16... Qxg6 {[%clk 0:02:33.2]} 17. Qd3 {[%clk 0:02:52.4]} 17... Nd4 {[%clk
0:02:30]} 18. Qxg6 {[%clk 0:02:50.9]} 18... fxg6 {[%clk 0:02:29.6]} 19. Ncd5
{[%clk 0:02:45.8]} 19... Rc8 {[%clk 0:02:28.4]} 20. c3 {[%clk 0:02:45.8]} 20...
Ne6 {[%clk 0:02:20.5]} 21. Ke2 {[%clk 0:02:45.5]} 21... Be7 {[%clk 0:02:16.8]}
22. g3 {[%clk 0:02:45.1]} 22... Rf8 {[%clk 0:02:16.3]} 23. h4 {[%clk 0:02:44]}
23... Bd8 {[%clk 0:02:08.4]} 24. Rad1 {[%clk 0:02:42.8]} 24... Nc5 {[%clk
0:02:05.6]} 25. f3 {[%clk 0:02:42.2]} 25... e4 {[%clk 0:02:00.8]} 26. f4 {[%clk
0:02:41.3]} 26... Nd3 {[%clk 0:02:00.8]} 27. Rd2 {[%clk 0:02:35.6]} 27... g5
{[%clk 0:01:54.2]} 28. hxg5 {[%clk 0:02:34.3]} 28... hxg5 {[%clk 0:01:54.2]} 29.
f5 {[%clk 0:02:30.4]} 29... g4 {[%clk 0:01:52.5]} 30. Rh7 {[%clk 0:02:23.2]}
30... Bg5 {[%clk 0:01:48.6]} 31. Rxb7 {[%clk 0:02:18]} 31... Rh8 {[%clk
0:01:48.5]} 32. Rxd3 {[%clk 0:02:16.2]} 32... Rh2+ {[%clk 0:01:46.7]} 33. Kd1
{[%clk 0:02:08.3]} 33... exd3 {[%clk 0:01:46.3]} 34. f6 {[%clk 0:02:06.7]} 34...
Kf8 {[%clk 0:01:38.5]} 35. f7 {[%clk 0:02:06.4]} 35... Rc5 {[%clk 0:01:23.8]}
36. c4 {[%clk 0:02:01.3]} 36... Rxc4 {[%clk 0:01:21]} 37. Nxc4 {[%clk 0:02:00]}
37... Rh1# {[%clk 0:01:20.7]} 0-1

[Event "Early-Titled-Tuesday-Blitz-February-20-2024"]
[Site "Chess.com"]
[Date "2024.02.20"]
[Round "10"]
[White "ragnaroek66"]
[Black "LuisFSiles"]
[Result "1-0"]
[WhiteElo "2477"]
[BlackElo "2333"]
[TimeControl "180+1"]
[EndTime "9:55:20 PST"]
[Termination "ragnaroek66 won by resignation"]

1. d4 {[%clk 0:03:00.9]} 1... Nf6 {[%clk 0:02:59.6]} 2. c4 {[%clk 0:03:00]} 2...
g6 {[%clk 0:03:00]} 3. Nc3 {[%clk 0:02:59.3]} 3... d5 {[%clk 0:03:00.4]} 4. cxd5
{[%clk 0:02:59.2]} 4... Nxd5 {[%clk 0:03:01.3]} 5. e4 {[%clk 0:02:58.8]} 5...
Nxc3 {[%clk 0:03:01.7]} 6. bxc3 {[%clk 0:02:59.7]} 6... Bg7 {[%clk 0:03:02]} 7.
Nf3 {[%clk 0:03:00.4]} 7... c5 {[%clk 0:03:00.2]} 8. Bb5+ {[%clk 0:03:00]} 8...
Nd7 {[%clk 0:02:58.3]} 9. O-O {[%clk 0:02:52.1]} 9... O-O {[%clk 0:02:57.8]} 10.
Rb1 {[%clk 0:02:38.9]} 10... Qc7 {[%clk 0:02:57.1]} 11. Bg5 {[%clk 0:02:29.7]}
11... Nf6 {[%clk 0:02:50.6]} 12. Qd3 {[%clk 0:02:13.5]} 12... a6 {[%clk
0:02:44]} 13. Ba4 {[%clk 0:02:08.8]} 13... b5 {[%clk 0:02:41.3]} 14. Bc2 {[%clk
0:02:08.1]} 14... Bb7 {[%clk 0:02:29.6]} 15. d5 {[%clk 0:02:06.8]} 15... c4
{[%clk 0:02:19.7]} 16. Qd2 {[%clk 0:01:50.9]} 16... e6 {[%clk 0:01:51.8]} 17. d6
{[%clk 0:01:47]} 17... Qc6 {[%clk 0:01:51.7]} 18. Ne5 {[%clk 0:01:37.6]} 18...
Qc5 {[%clk 0:01:44.3]} 19. Bxf6 {[%clk 0:01:36.8]} 19... Bxf6 {[%clk 0:01:37.7]}
20. Nd7 {[%clk 0:01:36.7]} 20... Qg5 {[%clk 0:01:37.2]} 21. f4 {[%clk
0:01:36.8]} 21... Qh4 {[%clk 0:01:30.1]} 22. g3 {[%clk 0:01:36.8]} 1-0

[Event "Early-Titled-Tuesday-Blitz-February-20-2024"]
[Site "Chess.com"]
[Date "2024.02.20"]
[Round "10"]
[White "Rud_Makarian"]
[Black "JonaszBaum"]
[Result "0-1"]
[WhiteElo "3056"]
[BlackElo "2737"]
[TimeControl "180+1"]
[EndTime "9:55:40 PST"]
[Termination "JonaszBaum won by resignation"]

1. d4 {[%clk 0:03:00.9]} 1... e6 {[%clk 0:02:59.9]} 2. Nf3 {[%clk 0:02:59.7]}
2... d5 {[%clk 0:02:57.9]} 3. c4 {[%clk 0:02:59.7]} 3... Nf6 {[%clk 0:02:58.2]}
4. g3 {[%clk 0:03:00]} 4... dxc4 {[%clk 0:02:56.6]} 5. Bg2 {[%clk 0:03:00.2]}
5... a6 {[%clk 0:02:56.9]} 6. O-O {[%clk 0:03:00.3]} 6... Nc6 {[%clk 0:02:56.6]}
7. e3 {[%clk 0:03:00.9]} 7... Rb8 {[%clk 0:02:56.6]} 8. Nfd2 {[%clk 0:03:00.5]}
8... e5 {[%clk 0:02:56.3]} 9. Bxc6+ {[%clk 0:03:01.2]} 9... bxc6 {[%clk
0:02:56.9]} 10. dxe5 {[%clk 0:03:02.1]} 10... Nd5 {[%clk 0:02:57.1]} 11. e4
{[%clk 0:02:47.2]} 11... Nb4 {[%clk 0:02:50.4]} 12. Nxc4 {[%clk 0:02:45.7]}
12... Qxd1 {[%clk 0:02:48.5]} 13. Rxd1 {[%clk 0:02:46.6]} 13... Nc2 {[%clk
0:02:48.1]} 14. b3 {[%clk 0:01:56.3]} 14... Nxa1 {[%clk 0:02:42.8]} 15. Nba3
{[%clk 0:01:55.2]} 15... Bg4 {[%clk 0:02:18.1]} 16. Rd3 {[%clk 0:01:47.5]} 16...
Be2 {[%clk 0:02:09.8]} 17. Rd2 {[%clk 0:01:47.5]} 17... Bf3 {[%clk 0:01:56.7]}
18. Bb2 {[%clk 0:01:24.1]} 18... Nxb3 {[%clk 0:01:56.1]} 19. Rd3 {[%clk
0:01:24.6]} 19... Bxe4 {[%clk 0:01:49.5]} 20. Rxb3 {[%clk 0:01:25.1]} 20... Rxb3
{[%clk 0:01:48.9]} 21. axb3 {[%clk 0:01:26]} 21... Bd5 {[%clk 0:01:44.6]} 22. f4
{[%clk 0:01:22]} 22... Bxa3 {[%clk 0:01:42.8]} 23. Nxa3 {[%clk 0:01:21.4]} 23...
Bxb3 {[%clk 0:01:41.9]} 24. Kf2 {[%clk 0:01:22.1]} 24... Kd7 {[%clk 0:01:37.3]}
25. Bd4 {[%clk 0:01:22.7]} 25... Rb8 {[%clk 0:01:33.2]} 26. f5 {[%clk 0:01:23]}
26... Bd5 {[%clk 0:01:29.5]} 27. Nc2 {[%clk 0:01:23.4]} 27... c5 {[%clk
0:01:26.1]} 28. Ba1 {[%clk 0:01:22.6]} 28... Rb1 {[%clk 0:01:24.6]} 29. Ke3
{[%clk 0:01:20.3]} 29... Bb3 {[%clk 0:01:24.2]} 0-1

[Event "Early-Titled-Tuesday-Blitz-February-20-2024"]
[Site "Chess.com"]
[Date "2024.02.20"]
[Round "10"]
[White "AvitalBor"]
[Black "Young_Catalan_Player09"]
[Result "0-1"]
[WhiteElo "2750"]
[BlackElo "2595"]
[TimeControl "180+1"]
[EndTime "9:55:54 PST"]
[Termination "Young_Catalan_Player09 won by checkmate"]

1. a3 {[%clk 0:03:00.9]} 1... d5 {[%clk 0:02:38.6]} 2. d4 {[%clk 0:02:59.3]}
2... Nf6 {[%clk 0:02:38.4]} 3. b4 {[%clk 0:02:56.9]} 3... Bf5 {[%clk 0:02:37]}
4. Nd2 {[%clk 0:02:53.8]} 4... e6 {[%clk 0:02:34.8]} 5. Nb3 {[%clk 0:02:53.3]}
5... Nbd7 {[%clk 0:02:33.4]} 6. Nf3 {[%clk 0:02:50.1]} 6... Bd6 {[%clk
0:02:32.6]} 7. Bg5 {[%clk 0:02:45.1]} 7... h6 {[%clk 0:02:31.6]} 8. Bh4 {[%clk
0:02:44.9]} 8... c6 {[%clk 0:02:32.1]} 9. e3 {[%clk 0:02:43.8]} 9... O-O {[%clk
0:02:29.4]} 10. Bd3 {[%clk 0:02:42.6]} 10... Re8 {[%clk 0:02:29.3]} 11. Bxf5
{[%clk 0:02:41.2]} 11... exf5 {[%clk 0:02:30.2]} 12. Qd3 {[%clk 0:02:38]} 12...
f4 {[%clk 0:02:29.9]} 13. O-O {[%clk 0:02:30.1]} 13... fxe3 {[%clk 0:02:28.7]}
14. fxe3 {[%clk 0:02:28.7]} 14... Qe7 {[%clk 0:02:28.4]} 15. Rae1 {[%clk
0:02:27.4]} 15... Qe4 {[%clk 0:02:26.8]} 16. Nc5 {[%clk 0:02:21.7]} 16... Bxc5
{[%clk 0:02:27.2]} 17. bxc5 {[%clk 0:02:22.1]} 17... b6 {[%clk 0:02:23.1]} 18.
Qc3 {[%clk 0:02:13.7]} 18... Re6 {[%clk 0:02:08.6]} 19. Bxf6 {[%clk 0:02:05.3]}
19... Nxf6 {[%clk 0:02:03.5]} 20. Ne5 {[%clk 0:02:01.3]} 20... Rae8 {[%clk
0:01:57.6]} 21. cxb6 {[%clk 0:01:47.4]} 21... axb6 {[%clk 0:01:55.7]} 22. Nxc6
{[%clk 0:01:41.3]} 22... Qh4 {[%clk 0:01:55.2]} 23. Ne5 {[%clk 0:01:37.9]} 23...
Ne4 {[%clk 0:01:36.8]} 24. Qc7 {[%clk 0:00:52]} 24... Rf6 {[%clk 0:01:34.9]} 25.
Rxf6 {[%clk 0:00:49.6]} 25... Qxe1+ {[%clk 0:01:32.8]} 26. Rf1 {[%clk
0:00:45.3]} 26... Qxe3+ {[%clk 0:01:32.4]} 27. Kh1 {[%clk 0:00:45.5]} 27... Nf2+
{[%clk 0:01:32.6]} 28. Kg1 {[%clk 0:00:45.4]} 28... Nh3+ {[%clk 0:01:32.8]} 29.
Kh1 {[%clk 0:00:45.8]} 29... Qg1+ {[%clk 0:01:33.4]} 30. Rxg1 {[%clk 0:00:46.5]}
30... Nf2# {[%clk 0:01:34.3]} 0-1

[Event "Early-Titled-Tuesday-Blitz-February-20-2024"]
[Site "Chess.com"]
[Date "2024.02.20"]
[Round "10"]
[White "ninguno46"]
[Black "GelmanAlexander"]
[Result "0-1"]
[WhiteElo "2546"]
[BlackElo "2743"]
[TimeControl "180+1"]
[EndTime "9:56:07 PST"]
[Termination "GelmanAlexander won by resignation"]

1. e4 {[%clk 0:03:00.9]} 1... c5 {[%clk 0:02:59.8]} 2. Nc3 {[%clk 0:03:00.1]}
2... e6 {[%clk 0:03:00.2]} 3. f4 {[%clk 0:03:00.5]} 3... a6 {[%clk 0:03:00.6]}
4. Nf3 {[%clk 0:03:00.2]} 4... d6 {[%clk 0:03:01]} 5. d3 {[%clk 0:02:57.5]} 5...
Nc6 {[%clk 0:03:00.6]} 6. Qe2 {[%clk 0:02:57.2]} 6... Nf6 {[%clk 0:03:00.7]} 7.
g3 {[%clk 0:02:57.3]} 7... Be7 {[%clk 0:02:58.9]} 8. Bg2 {[%clk 0:02:57.5]} 8...
Qc7 {[%clk 0:02:58.1]} 9. O-O {[%clk 0:02:57.6]} 9... Bd7 {[%clk 0:02:56.2]} 10.
e5 {[%clk 0:02:54.7]} 10... dxe5 {[%clk 0:02:52.8]} 11. fxe5 {[%clk 0:02:54.4]}
11... Nd5 {[%clk 0:02:53]} 12. Nxd5 {[%clk 0:02:50.7]} 12... exd5 {[%clk
0:02:53.6]} 13. Bf4 {[%clk 0:02:50.8]} 13... Be6 {[%clk 0:02:53.3]} 14. c3
{[%clk 0:02:49]} 14... h6 {[%clk 0:02:43.2]} 15. h4 {[%clk 0:02:42.5]} 15...
O-O-O {[%clk 0:02:38.8]} 16. d4 {[%clk 0:02:38.9]} 16... Kb8 {[%clk 0:02:37.7]}
17. Rac1 {[%clk 0:02:38.1]} 17... Ka8 {[%clk 0:02:37.4]} 18. Be3 {[%clk
0:02:37.6]} 18... g5 {[%clk 0:02:31.3]} 19. hxg5 {[%clk 0:02:37]} 19... hxg5
{[%clk 0:02:30.5]} 20. Nh2 {[%clk 0:02:35.2]} 20... Rh7 {[%clk 0:02:11.6]} 21.
Ng4 {[%clk 0:02:33.7]} 21... Rdh8 {[%clk 0:02:08.6]} 22. Nf6 {[%clk 0:02:33.4]}
22... Bxf6 {[%clk 0:02:03.4]} 23. Rxf6 {[%clk 0:02:32.9]} 23... Nxe5 {[%clk
0:01:41.8]} 24. dxe5 {[%clk 0:02:26.2]} 24... Qxe5 {[%clk 0:01:42.1]} 25. Qf2
{[%clk 0:02:24.3]} 25... Bh3 {[%clk 0:01:24.9]} 26. Qe2 {[%clk 0:01:32.6]} 26...
Qxf6 {[%clk 0:01:20.4]} 27. Bxd5 {[%clk 0:01:32]} 27... Qd6 {[%clk 0:01:00.6]}
28. Qf3 {[%clk 0:01:30.9]} 28... Bc8 {[%clk 0:00:54.2]} 29. Rf1 {[%clk
0:01:20.7]} 29... g4 {[%clk 0:00:49.8]} 30. Qe4 {[%clk 0:01:20.1]} 0-1